bitfinex/quotes_BTCUSD_20220111
["timestamp","ask_amount","ask_price","bid_price","bid_amount"]
[1641891092737,0.0626,42023.0,42022.0,0.2461434]
[1641891093435,0.015,42023.0,42022.0,0.2461434]
[1641891093635,0.41928014,42027.0,42022.0,0.2461434]
[1641891093834,0.31741296,42026.0,42022.0,0.2461434]
[1641891094036,0.41928014,42027.0,42022.0,0.2461434]
[1641891094237,0.31823545,42026.0,42022.0,0.24901938]
[1641891094436,0.43228014,42027.0,42022.0,0.24901938]
[1641891095038,0.69591254,42026.0,42022.0,0.24901938]
[1641891095638,0.69591254,42026.0,42022.0,0.24601938]
[1641891095839,0.31703643,42026.0,42022.0,0.00032986]
[1641891096040,0.059495,42025.0,42022.0,0.00032986]
[1641891096673,0.33198896,42026.0,42022.0,0.00032986]
[1641891097574,0.60663735,42026.0,42022.0,0.00032986]
[1641891097972,0.31798896,42026.0,42022.0,0.00032986]
[1641891098373,0.33198896,42026.0,42022.0,0.00032986]
[1641891099279,0.014,42026.0,42022.0,0.39176891]
[1641891099476,0.00073828,42033.0,42022.0,0.45246902]
[1641891099875,0.00073828,42033.0,42026.0,0.00129583]
[1641891100122,0.59264143,42035.0,42026.0,0.00699117]
[1641891100323,0.06573828,42033.0,42031.0,0.31966279]
[1641891100521,0.06573828,42033.0,42031.0,0.36966279]
[1641891101122,0.065,42033.0,42032.0,0.036155]
[1641891101522,0.00073836,42034.0,42032.0,0.036155]
[1641891101823,0.00073836,42034.0,42032.0,0.0607037]
[1641891102022,0.00073836,42034.0,42033.0,0.03614]
[1641891102225,0.00273836,42034.0,42033.0,0.03614]
[1641891102425,0.002,42034.0,42033.0,0.03614]
[1641891103424,0.002,42034.0,42033.0,0.08614]
[1641891103626,0.32788995,42040.0,42033.0,0.08614]
[1641891103882,0.00073835,42036.0,42033.0,0.05]
[1641891104075,0.00073835,42036.0,42032.0,0.05]
[1641891104274,0.00073835,42036.0,42033.0,0.00040814]
[1641891104878,0.013,42040.0,42033.0,0.00040814]
[1641891105075,0.00085523,42037.0,42036.0,0.28770281]
[1641891105477,0.00085523,42037.0,42036.0,0.38770281]
[1641891106075,0.36663676,42044.0,42036.0,0.38770281]
[1641891106275,0.064,42037.0,42036.0,0.001]
[1641891106877,0.38093315,42037.0,42036.0,0.001]
[1641891107077,0.64260945,42037.0,42036.0,0.001]
[1641891107480,0.57860945,42037.0,42033.0,0.27034533]
[1641891107723,0.059476,42036.0,42033.0,0.32034533]
[1641891108323,0.067476,42036.0,42033.0,0.33634533]
[1641891109325,0.067476,42036.0,42035.0,0.00040729]
[1641891109624,0.067476,42036.0,42035.0,0.03654129]
[1641891110127,0.37142587,42037.0,42035.0,0.03654129]
[1641891110324,0.005,42036.0,42035.0,0.00340729]
[1641891110925,0.005,42036.0,42035.0,0.03954129]
[1641891111573,0.00085523,42038.0,42035.0,0.03654129]
[1641891111773,0.00085523,42038.0,42035.0,0.14600829]
[1641891111972,0.40414124,42039.0,42035.0,0.14600829]
[1641891112273,0.05,42036.0,42035.0,0.14600829]
[1641891112473,0.05,42036.0,42035.0,0.08654129]
[1641891112872,0.05,42036.0,42035.0,0.13654129]
[1641891114375,0.053,42036.0,42035.0,0.14554129]
[1641891115224,0.053,42036.0,42035.0,0.10940729]
[1641891115421,0.053,42036.0,42035.0,0.05940729]
[1641891116122,0.75,42036.0,42035.0,0.00040729]
[1641891116322,1.24090404,42036.0,42035.0,0.00340729]
[1641891116523,1.38974176,42036.0,42035.0,0.00340729]
[1641891116721,0.98732112,42036.0,42035.0,0.00340729]
[1641891117320,1.32954236,42036.0,42035.0,0.00340729]
[1641891117521,1.32254236,42036.0,42035.0,0.00040729]
[1641891117725,0.98032112,42036.0,42035.0,0.00040729]
[1641891118321,0.99132112,42036.0,42035.0,0.00040729]
[1641891118523,1.35807013,42036.0,42035.0,0.00040729]
[1641891119176,0.94959073,42036.0,42025.0,0.24374741]
[1641891119378,0.26631949,42030.0,42025.0,0.30323041]
[1641891119576,0.26631949,42030.0,42026.0,0.036151]
[1641891119577,0.059483,42029.0,42026.0,0.036151]
[1641891120383,0.009,42029.0,42027.0,0.059478]
[1641891120580,0.009,42029.0,42028.0,0.036152]
[1641891120780,0.009,42029.0,42028.0,0.04219536]
[1641891120979,0.009,42029.0,42028.0,0.036152]
[1641891121377,0.009,42029.0,42028.0,0.44799592]
[1641891121578,0.009,42029.0,42028.0,0.44031228]
[1641891121781,0.009,42029.0,42028.0,0.155085]
[1641891121979,0.009,42029.0,42028.0,0.205085]
[1641891122278,0.009,42029.0,42028.0,0.217085]
[1641891122730,0.009,42029.0,42028.0,0.098152]
[1641891122934,0.009,42029.0,42028.0,0.048152]
[1641891123727,0.00085522,42033.0,42028.0,0.036152]
[1641891123927,0.00085522,42033.0,42027.0,0.059479]
[1641891123928,0.32058153,42033.0,42027.0,0.059479]
[1641891124128,0.059479,42031.0,42025.0,0.24374741]
[1641891124328,1.78425199,42029.0,42028.0,0.00045145]
[1641891124527,0.059479,42031.0,42028.0,0.00045145]
[1641891124931,0.31360017,42030.0,42028.0,0.00045145]
[1641891125128,0.31528054,42030.0,42028.0,0.00045145]
[1641891126133,0.37424454,42029.0,42028.0,0.00045145]
[1641891126389,0.86113114,42029.0,42028.0,0.00045145]
[1641891126583,0.96113114,42029.0,42028.0,0.00045145]
[1641891129184,0.96113114,42029.0,42019.0,0.24506013]
[1641891129384,0.059497,42025.0,42019.0,0.24506013]
[1641891129584,0.3027655,42021.0,42019.0,0.24506013]
[1641891130423,0.3027655,42021.0,42019.0,0.25606013]
[1641891131228,0.3622615,42021.0,42019.0,0.25606013]
[1641891131624,0.67681995,42021.0,42019.0,0.24506013]
[1641891131825,0.67766169,42021.0,42019.0,0.24506013]
[1641891132026,0.3622615,42021.0,42019.0,0.24506013]
[1641891132525,0.67686435,42021.0,42019.0,0.00045145]
[1641891132726,0.3622615,42021.0,42019.0,0.00045145]
[1641891133328,0.32536729,42020.0,42019.0,0.00045145]
[1641891133534,0.56640108,42020.0,42019.0,0.00045145]
[1641891133730,1.08826426,42020.0,42019.0,0.00045145]
[1641891134190,1.14777326,42020.0,42013.0,0.00035082]
[1641891134389,0.059509,42017.0,42013.0,0.00035082]
[1641891134588,0.0476,42016.0,42013.0,0.00035082]
[1641891134888,0.0476,42016.0,42010.0,0.00045485]
[1641891135088,0.0476,42016.0,42013.0,0.00035084]
[1641891135690,0.0476,42016.0,42014.0,0.036186]
[1641891136092,0.0476,42016.0,42011.0,0.109498]
[1641891136291,0.0476,42022.0,42014.0,0.06474811]
[1641891136490,0.004,42016.0,42015.0,0.03742021]
[1641891136688,0.004,42016.0,42015.0,0.04489779]
[1641891136890,0.004,42016.0,42015.0,0.16802834]
[1641891137089,0.004,42016.0,42015.0,0.21802834]
[1641891137288,0.004,42016.0,42015.0,0.21386979]
[1641891137489,1.0917,42032.0,42024.0,0.3695062]
[1641891137725,0.29398213,42034.0,42025.0,0.085]
[1641891138127,0.29398213,42034.0,42026.0,0.52659251]
[1641891138128,0.00342009,42034.0,42026.0,0.52659251]
[1641891138527,0.9484,42038.0,42026.0,0.92769716]
[1641891138731,0.059471,42042.0,42026.0,0.92769716]
[1641891138928,1.1317,42043.0,42027.0,0.036153]
[1641891139126,0.41076611,42041.0,42033.0,0.312251]
[1641891139328,1.1317,42043.0,42033.0,0.312251]
[1641891139527,1.1317,42043.0,42033.0,0.412251]
[1641891139728,0.30885163,42040.0,42033.0,0.412251]
[1641891139928,0.30885163,42040.0,42033.0,0.1]
[1641891140128,0.342827,42033.0,42029.0,0.05]
[1641891140527,0.342827,42033.0,42028.0,0.05]
[1641891140728,0.342827,42033.0,42027.0,0.00045187]
[1641891141128,0.41496713,42032.0,42027.0,0.00045187]
[1641891142173,0.342827,42033.0,42027.0,0.00045187]
[1641891142374,0.00085519,42035.0,42027.0,0.00045187]
[1641891143175,0.58139134,42036.0,42027.0,0.05992987]
[1641891143375,0.28220299,42033.0,42027.0,0.05992987]
[1641891143774,0.00085521,42035.0,42027.0,0.05992987]
[1641891143981,0.00085521,42035.0,42029.0,0.059473]
[1641891144174,0.00085521,42035.0,42032.0,0.059472]
[1641891144474,0.05,42036.0,42032.0,0.059472]
[1641891144674,0.05,42036.0,42031.0,0.05]
[1641891144675,0.00085523,42035.0,42031.0,0.05]
[1641891144875,0.00085523,42035.0,42030.0,0.05]
[1641891145122,0.32562724,42030.0,42029.0,0.00045102]
[1641891145323,0.00085523,42035.0,42029.0,0.00045102]
[1641891145523,0.059482,42033.0,42029.0,0.00045102]
[1641891145822,0.00085523,42035.0,42029.0,0.00045102]
[1641891146023,0.00085523,42035.0,42031.0,0.35507161]
[1641891146427,0.00085523,42035.0,42034.0,0.10214227]
[1641891146627,0.00085523,42035.0,42034.0,0.20214227]
[1641891146824,0.05,42036.0,42034.0,0.32106827]
[1641891147624,0.05,42036.0,42035.0,0.095598]
[1641891148228,0.05,42036.0,42035.0,0.09679816]
[1641891148429,0.05,42036.0,42035.0,0.10479816]
[1641891148628,2.51958846,42036.0,42035.0,0.044136]
[1641891148878,2.51958846,42036.0,42035.0,0.008]
[1641891149073,0.05,42036.0,42035.0,0.058]
[1641891149275,0.05,42036.0,42035.0,0.05844848]
[1641891149473,0.05,42036.0,42035.0,0.00844848]
[1641891149772,0.05,42036.0,42035.0,0.00044848]
[1641891150374,0.05,42036.0,42035.0,0.00444848]
[1641891151678,0.05,42036.0,42035.0,0.00044848]
[1641891154326,0.05,42036.0,42031.0,0.35552009]
[1641891154528,0.31497359,42032.0,42031.0,0.35552009]
[1641891154727,0.31497359,42032.0,42031.0,0.39165909]
[1641891154924,0.31497359,42032.0,42031.0,0.35552009]
[1641891155326,0.31497359,42032.0,42031.0,0.30552009]
[1641891155524,0.31497359,42032.0,42031.0,0.00044848]
[1641891156573,0.31497359,42032.0,42031.0,0.00444848]
[1641891157377,0.78797759,42032.0,42031.0,0.00444848]
[1641891157770,0.83557759,42032.0,42031.0,0.00044848]
[1641891158572,0.84857759,42032.0,42031.0,0.00044848]
[1641891158771,0.90807059,42032.0,42031.0,0.00044848]
[1641891159171,0.90807059,42032.0,42026.0,0.00080631]
[1641891159375,0.52904699,42029.0,42026.0,0.00080631]
[1641891159572,0.373004,42028.0,42026.0,0.00080631]
[1641891159775,0.46955899,42029.0,42026.0,0.00080631]
[1641891159971,0.46955899,42029.0,42026.0,0.00045017]
[1641891160231,0.36257359,42032.0,42026.0,0.00045017]
[1641891160532,0.011,42029.0,42026.0,0.00045017]
[1641891161133,0.4117901,42029.0,42026.0,0.00045017]
[1641891161334,0.373004,42028.0,42026.0,0.00045017]
[1641891162534,0.43687503,42027.0,42026.0,0.00045017]
[1641891162733,0.81704618,42027.0,42026.0,0.00045017]
[1641891162933,0.91704618,42027.0,42026.0,0.00045017]
[1641891163336,0.10716715,42027.0,42026.0,0.00045017]
[1641891163977,0.00716715,42027.0,42026.0,0.00045017]
[1641891164182,0.00716715,42027.0,42026.0,0.32100913]
[1641891164576,0.00716715,42027.0,42026.0,0.38049013]
[1641891164579,0.02316715,42027.0,42026.0,0.38049013]
[1641891165178,0.02316715,42027.0,42026.0,0.43049013]
[1641891165377,0.02316715,42027.0,42026.0,0.37100913]
[1641891166377,0.00716715,42027.0,42026.0,0.40716513]
[1641891166578,0.01816715,42027.0,42026.0,0.41316513]
[1641891167728,0.00716715,42027.0,42026.0,0.40716513]
[1641891167928,0.00716715,42027.0,42026.0,0.45716513]
[1641891168128,0.00716715,42027.0,42026.0,0.45216513]
[1641891168331,0.00716715,42027.0,42026.0,0.96122977]
[1641891168530,0.05,42036.0,42027.0,0.10886841]
[1641891168729,0.00085515,42035.0,42028.0,0.0989636]
[1641891169030,0.00085515,42035.0,42029.0,0.059473]
[1641891169228,0.00085515,42035.0,42031.0,0.059474]
[1641891169629,0.05,42036.0,42031.0,0.109474]
[1641891169929,0.00085524,42035.0,42031.0,0.159474]
[1641891170132,0.00085524,42035.0,42031.0,0.109474]
[1641891170133,0.00802007,42035.0,42031.0,0.109474]
[1641891170329,0.00802007,42035.0,42031.0,0.059474]
[1641891170531,0.07686162,42035.0,42031.0,0.060474]
[1641891170832,0.07616483,42035.0,42031.0,0.060474]
[1641891171678,0.07616483,42035.0,42031.0,0.10046271]
[1641891171879,0.00716483,42035.0,42033.0,0.05947]
[1641891172479,0.02216483,42035.0,42033.0,0.06547]
[1641891173781,0.00716483,42035.0,42033.0,0.05947]
[1641891174181,0.00716483,42035.0,42034.0,0.0004489]
[1641891174582,0.02116483,42035.0,42034.0,0.0004489]
[1641891175528,0.37116483,42035.0,42034.0,0.0004489]
[1641891175728,0.00716483,42035.0,42034.0,0.0004489]
[1641891176630,0.02116483,42035.0,42034.0,0.0004489]
[1641891176833,0.39416883,42035.0,42034.0,0.0004489]
[1641891177231,0.75255155,42035.0,42034.0,0.0004489]
[1641891177431,1.20255155,42035.0,42034.0,0.0004489]
[1641891177834,1.20003866,42035.0,42034.0,0.0004489]
[1641891178031,1.31901666,42035.0,42034.0,0.0004489]
[1641891178231,0.96901666,42035.0,42034.0,0.0004489]
[1641891178533,0.98201666,42035.0,42034.0,0.0004489]
[1641891179185,0.98201666,42035.0,42026.0,0.00040182]
[1641891179186,0.98201666,42035.0,42026.0,0.0004489]
[1641891179384,0.70966176,42027.0,42026.0,0.00085072]
[1641891180584,0.71766176,42027.0,42026.0,0.0204489]
[1641891181182,0.43932854,42027.0,42026.0,0.03596004]
[1641891181885,0.43132854,42027.0,42026.0,0.01596004]
[1641891182283,0.71478409,42027.0,42026.0,0.01596004]
[1641891182486,0.72178409,42027.0,42026.0,0.03896004]
[1641891183225,0.007,42027.0,42026.0,0.03896004]
[1641891183924,0.10716483,42035.0,42026.0,0.01596004]
[1641891184125,0.00716483,42035.0,42030.0,0.059477]
[1641891184529,0.00716483,42035.0,42031.0,0.01551114]
[1641891184530,0.03816483,42035.0,42031.0,0.01551114]
[1641891185327,0.09764183,42035.0,42031.0,0.01551114]
[1641891185530,0.059478,42033.0,42031.0,0.06551114]
[1641891186130,0.00716483,42035.0,42031.0,0.01551114]
[1641891186574,0.015,42033.0,42031.0,0.02151114]
[1641891186774,0.074476,42033.0,42031.0,0.02151114]
[1641891187778,0.059476,42033.0,42031.0,0.01551114]
[1641891188181,0.00716483,42035.0,42030.0,0.41093156]
[1641891188578,0.014,42033.0,42030.0,0.46093156]
[1641891188980,0.014,42033.0,42031.0,0.059474]
[1641891189180,0.073476,42033.0,42032.0,0.00044975]
[1641891189881,0.059476,42033.0,42032.0,0.00044975]
[1641891190533,0.115476,42033.0,42032.0,0.00044975]
[1641891190737,0.48848,42033.0,42032.0,0.00044975]
[1641891191132,0.58848,42033.0,42032.0,0.00044975]
[1641891191433,0.82437045,42033.0,42032.0,0.01596089]
[1641891191631,1.16734766,42033.0,42032.0,0.01596089]
[1641891191834,1.11134766,42033.0,42032.0,0.01596089]
[1641891192433,1.16134766,42033.0,42032.0,0.01596089]
[1641891192636,0.42429132,42023.0,42020.0,0.00121405]
[1641891192835,0.30065184,42022.0,42015.0,1.21563298]
[1641891193034,0.30065184,42022.0,42019.0,0.059492]
[1641891193432,0.30065184,42022.0,42019.0,0.31943078]
[1641891194079,0.30065184,42022.0,42019.0,0.36943078]
[1641891194279,0.30065184,42022.0,42019.0,0.30993878]
[1641891194479,0.009,42022.0,42020.0,0.059489]
[1641891194881,3.509,42022.0,42020.0,0.059489]
[1641891195081,0.059492,42021.0,42020.0,0.059489]
[1641891195280,3.509,42022.0,42020.0,0.059489]
[1641891195887,3.77337155,42022.0,42020.0,0.059489]
[1641891196180,3.559491,42022.0,42020.0,0.059489]
[1641891196581,3.568491,42022.0,42020.0,0.059489]
[1641891196981,3.90590823,42022.0,42019.0,0.31033578]
[1641891197182,3.90590823,42022.0,42019.0,0.30993878]
[1641891197726,3.89690823,42022.0,42019.0,0.30993878]
[1641891198627,3.90690823,42022.0,42019.0,0.30993878]
[1641891199228,3.90690823,42022.0,42021.0,0.00040945]
[1641891199829,3.89690823,42022.0,42021.0,0.00040945]
[1641891200234,4.26991223,42022.0,42021.0,0.00040945]
[1641891200631,4.27891223,42022.0,42021.0,0.00040945]
[1641891201879,4.26991223,42022.0,42021.0,0.00040945]
[1641891202482,4.36991223,42022.0,42021.0,0.00040945]
[1641891202681,4.42751223,42022.0,42021.0,0.00040945]
[1641891202880,0.05,42021.0,42019.0,0.00039698]
[1641891203081,0.420604,42020.0,42019.0,0.00039698]
[1641891203280,0.420604,42020.0,42008.0,0.059506]
[1641891203483,0.420604,42020.0,42018.0,0.00039701]
[1641891203484,0.570604,42020.0,42018.0,0.00039701]
[1641891204283,0.63010945,42020.0,42018.0,9.701e-05]
[1641891204587,0.44926046,42019.0,42008.0,0.27162715]
[1641891204784,0.059506,42014.0,42008.0,0.27162715]
[1641891204985,0.31595041,42013.0,42008.0,0.27162715]
[1641891205238,0.31295041,42013.0,42008.0,0.27162715]
[1641891205839,0.33597974,42009.0,42008.0,0.27162715]
[1641891206040,0.33597974,42009.0,42008.0,0.30782115]
[1641891206241,0.059508,42010.0,42008.0,0.30782115]
[1641891206440,0.059508,42010.0,42009.0,0.036199]
[1641891208441,0.28154135,42012.0,42009.0,0.036199]
[1641891208641,0.004,42010.0,42008.0,0.38113315]
[1641891208911,0.004,42010.0,42008.0,0.32162715]
[1641891209101,0.004,42010.0,42009.0,0.036197]
[1641891209301,0.004,42010.0,42009.0,0.0365706]
[1641891209501,0.004,42010.0,42009.0,0.0003736]
[1641891209900,0.34104435,42012.0,42009.0,0.0003736]
[1641891210700,0.34104435,42012.0,42010.0,0.059503]
[1641891210701,0.34904435,42012.0,42010.0,0.059503]
[1641891211102,0.34904435,42012.0,42009.0,0.0003736]
[1641891211300,0.127009,42012.0,42009.0,0.0003736]
[1641891211505,0.067503,42012.0,42009.0,0.0003736]
[1641891211901,0.059503,42012.0,42009.0,0.0003736]
[1641891212501,0.059507,42011.0,42009.0,0.0003736]
[1641891212731,0.067503,42012.0,42009.0,0.0598786]
[1641891213129,0.008,42012.0,42009.0,0.0598786]
[1641891213729,0.008,42012.0,42009.0,0.0003736]
[1641891213929,0.48987153,42017.0,42009.0,0.0003736]
[1641891214132,0.24170873,42012.0,42009.0,0.0003736]
[1641891214331,0.24170873,42012.0,42008.0,0.35098523]
[1641891214929,0.24170873,42012.0,42008.0,0.41049123]
[1641891215332,0.24170873,42012.0,42008.0,0.41009448]
[1641891215530,0.24170873,42012.0,42008.0,0.41049124]
[1641891215932,0.30121473,42012.0,42008.0,0.41049124]
[1641891216132,0.36072273,42012.0,42008.0,0.41049124]
[1641891216581,3.5,42010.0,42008.0,0.05037275]
[1641891216782,0.31844247,42009.0,42008.0,0.05076756]
[1641891217078,3.5,42010.0,42008.0,0.00076756]
[1641891217278,3.619018,42010.0,42008.0,0.00076756]
[1641891217680,3.619018,42010.0,42008.0,0.00037275]
[1641891218681,3.626018,42010.0,42008.0,0.00037275]
[1641891219285,3.626018,42010.0,42007.0,0.00039483]
[1641891219981,3.619018,42010.0,42007.0,0.00039483]
[1641891220230,0.059507,42009.0,42006.0,0.05990105]
[1641891220829,0.119016,42009.0,42006.0,0.00039505]
[1641891221029,0.059507,42009.0,42006.0,0.00039505]
[1641891221229,0.059507,42009.0,42005.0,0.0003736]
[1641891221429,0.059507,42009.0,42005.0,0.00076866]
[1641891221628,3.626022,42010.0,42005.0,0.00076866]
[1641891221629,0.059509,42007.0,42005.0,0.00076866]
[1641891221832,0.39290255,42006.0,42005.0,0.00076866]
[1641891222533,0.39290255,42006.0,42005.0,0.0003736]
[1641891224280,0.39290255,42006.0,42003.0,0.00077037]
[1641891224681,0.45241055,42006.0,42003.0,0.00077037]
[1641891224882,0.45241055,42006.0,42005.0,0.059507]
[1641891225481,0.39290255,42006.0,42005.0,0.059507]
[1641891225883,3.5,42007.0,42005.0,0.059507]
[1641891226080,3.5,42007.0,42005.0,0.159507]
[1641891226482,3.5,42007.0,42005.0,0.1]
[1641891226882,3.5,42007.0,42004.0,0.05951]
[1641891226883,3.559507,42007.0,42004.0,0.05]
[1641891227087,3.559507,42007.0,42003.0,0.00077037]
[1641891227088,0.7316049,42006.0,42003.0,0.00077037]
[1641891227285,0.79222615,42006.0,42003.0,0.0003753]
[1641891227484,0.89934815,42006.0,42003.0,0.00077037]
[1641891227733,0.95886988,42006.0,42003.0,0.00077037]
[1641891227931,0.90058265,42006.0,42003.0,0.00077037]
[1641891228132,2.55533119,42005.0,42003.0,0.00077037]
[1641891228332,0.373004,42004.0,42003.0,0.00077037]
[1641891228533,0.473004,42004.0,42003.0,0.0003753]
[1641891228732,0.90461269,42004.0,42003.0,0.0003753]
[1641891229333,0.90461269,42004.0,42002.0,0.00297039]
[1641891229533,0.40425997,42003.0,42002.0,0.00297039]
[1641891229737,0.77726397,42003.0,42002.0,0.0025753]
[1641891230636,0.93486397,42003.0,42002.0,0.0025753]
[1641891230837,0.98486397,42003.0,42002.0,0.0025753]
[1641891231883,0.93486397,42003.0,42002.0,0.0025753]
[1641891232483,0.83486397,42003.0,42002.0,0.0025753]
[1641891232681,0.94386397,42003.0,42002.0,0.0025753]
[1641891233884,0.92486397,42003.0,42002.0,0.0025753]
[1641891234686,0.93386397,42003.0,42002.0,0.0025753]
[1641891235336,0.93386397,42003.0,42000.0,0.00149512]
[1641891235634,0.93386397,42003.0,41997.0,0.0011]
[1641891235635,0.059541,41999.0,41997.0,0.0011]
[1641891235833,0.79548322,41998.0,41997.0,0.0011]
[1641891236034,0.89548322,41998.0,41997.0,0.0011]
[1641891236233,1.4967186,41998.0,41990.0,0.0044]
[1641891236435,0.40947776,41993.0,41990.0,0.0044]
[1641891236632,0.93008176,41993.0,41990.0,0.0044]
[1641891236836,0.003172,41991.0,41990.0,0.00078052]
[1641891237033,0.376176,41991.0,41990.0,0.00078052]
[1641891237234,0.69845696,41991.0,41990.0,0.00078052]
[1641891238034,1.48752139,41991.0,41990.0,0.00078052]
[1641891238235,1.54706839,41991.0,41990.0,0.00078052]
[1641891238636,1.45606839,41991.0,41990.0,0.00078052]
[1641891239284,1.45606839,41991.0,41990.0,0.00121231]
[1641891239486,1.39652139,41991.0,41990.0,0.00121231]
[1641891239885,1.38752139,41991.0,41990.0,0.00121231]
[1641891240290,0.70275015,41991.0,41990.0,0.00121231]
[1641891240485,1.07574315,41991.0,41990.0,0.00121231]
[1641891240686,1.08474315,41991.0,41990.0,0.00121231]
[1641891241286,1.08474315,41991.0,41977.0,0.00121285]
[1641891241287,0.372993,41990.0,41977.0,0.00121285]
[1641891241487,0.1891051,41989.0,41976.0,0.9798]
[1641891241688,0.00123211,41986.0,41976.0,0.9798]
[1641891241887,0.420593,41985.0,41971.0,0.3028]
[1641891242088,0.420593,41985.0,41965.0,1.81543508]
[1641891242090,0.37796118,41984.0,41965.0,2.6945]
[1641891242287,0.0012352,41982.0,41968.0,0.29515589]
[1641891242487,0.85260076,41982.0,41968.0,0.29515589]
[1641891242735,0.91216276,41982.0,41968.0,0.29515589]
[1641891242934,1.29012394,41982.0,41968.0,0.29515589]
[1641891243132,1.29012394,41982.0,41979.0,0.00035109]
[1641891243133,1.39012394,41982.0,41979.0,0.00035109]
[1641891243332,1.01216276,41982.0,41979.0,0.00035109]
[1641891243531,0.0476,41982.0,41979.0,0.00035109]
[1641891244134,0.0476,41982.0,41976.0,0.40101076]
[1641891244335,0.0476,41982.0,41981.0,0.00839244]
[1641891244734,0.008,41982.0,41981.0,0.00839244]
[1641891246035,0.00311222,41992.0,41981.0,0.00839244]
[1641891246036,3.5,41990.0,41981.0,0.00839244]
[1641891246236,3.5,41990.0,41982.0,0.03572082]
[1641891246683,0.059538,41988.0,41983.0,0.00035104]
[1641891247082,0.059538,41988.0,41985.0,0.28349326]
[1641891247483,0.059538,41988.0,41985.0,0.33349326]
[1641891248086,3.559536,41990.0,41985.0,0.33349326]
[1641891248485,3.559536,41990.0,41986.0,0.059534]
[1641891248884,3.569536,41990.0,41985.0,0.33349326]
[1641891249084,3.87279094,41990.0,41986.0,0.000351]
[1641891249285,3.87279094,41990.0,41987.0,0.00038989]
[1641891250134,3.92232894,41990.0,41987.0,0.00038989]
[1641891250334,3.619074,41990.0,41987.0,0.00038989]
[1641891250537,3.559536,41990.0,41987.0,0.00038989]
[1641891250735,3.568536,41990.0,41987.0,0.00038989]
[1641891252038,3.559536,41990.0,41987.0,0.00038989]
[1641891252837,3.565536,41990.0,41987.0,0.00038989]
[1641891253240,3.565536,41990.0,41988.0,0.059532]
[1641891253441,3.506,41990.0,41988.0,0.059532]
[1641891254086,3.5,41990.0,41988.0,0.109532]
[1641891254286,3.5,41990.0,41989.0,0.00046202]
[1641891256886,3.79198143,41990.0,41989.0,0.00046202]
[1641891258840,3.79598143,41990.0,41989.0,0.00046202]
[1641891259242,3.79598143,41990.0,41986.0,0.00082788]
[1641891259440,3.91505143,41990.0,41986.0,0.00082788]
[1641891259641,3.91505143,41990.0,41986.0,0.00047689]
[1641891259841,3.85551643,41990.0,41986.0,0.06036289]
[1641891260141,3.559535,41990.0,41986.0,0.06036289]
[1641891260947,3.83623847,41990.0,41986.0,0.06001189]
[1641891261145,3.559535,41990.0,41986.0,0.06036289]
[1641891261391,3.559535,41990.0,41986.0,0.06803073]
[1641891261584,3.5,41990.0,41987.0,0.64651052]
[1641891261784,3.5,41990.0,41988.0,0.06591032]
[1641891261983,3.5,41990.0,41988.0,0.11351032]
[1641891264186,3.5,41990.0,41989.0,0.00047689]
[1641891265833,3.5,41990.0,41989.0,0.04807689]
[1641891266035,3.5,41990.0,41989.0,0.04307689]
[1641891266434,3.5,41990.0,41989.0,0.54307689]
[1641891266634,3.5,41990.0,41989.0,0.64307689]
[1641891266834,3.5,41990.0,41989.0,0.65607689]
[1641891267035,3.5,41990.0,41989.0,0.70607689]
[1641891267734,3.5,41990.0,41989.0,0.20607689]
[1641891267935,3.5,41990.0,41989.0,0.40607689]
[1641891268134,3.5,41990.0,41989.0,0.49048361]
[1641891268336,3.5,41990.0,41989.0,0.84048361]
[1641891268737,3.5,41990.0,41989.0,0.85748361]
[1641891268985,3.5,41990.0,41989.0,1.24901881]
[1641891269185,3.5,41990.0,41989.0,1.24944801]
[1641891269385,3.5,41990.0,41989.0,1.64944801]
[1641891269585,3.5,41990.0,41989.0,1.24944801]
[1641891269984,3.5,41990.0,41989.0,1.23244801]
[1641891270783,3.5,41990.0,41989.0,1.25144801]
[1641891271184,0.95046244,41990.0,41989.0,0.61687602]
[1641891271392,0.059509,42007.0,41991.0,0.2]
[1641891271587,0.38686428,42009.0,41998.0,0.2]
[1641891271785,0.44636328,42012.0,42003.0,0.059498]
[1641891271985,0.38686428,42012.0,42004.0,0.0476]
[1641891272185,0.38686428,42015.0,42008.0,0.43545234]
[1641891272387,0.38686428,42015.0,42009.0,0.0476]
[1641891272631,0.38771942,42016.0,42009.0,0.0476]
[1641891272834,0.00342038,42018.0,42011.0,0.03569715]
[1641891272835,0.059493,42018.0,42011.0,0.03569715]
[1641891273035,0.00085535,42016.0,42009.0,0.0476]
[1641891273234,0.00085535,42016.0,42009.0,0.2476]
[1641891273634,0.33959152,42016.0,42009.0,0.2476]
[1641891273834,0.33959152,42016.0,42013.0,0.03569512]
[1641891274037,0.3146743,42019.0,42014.0,0.059493]
[1641891274339,0.00085535,42016.0,42014.0,0.059493]
[1641891274535,0.00085535,42016.0,42013.0,0.05]
[1641891274734,0.00085535,42016.0,42014.0,0.005]
[1641891275237,0.26690313,42015.0,42014.0,0.005]
[1641891275834,0.58925844,42015.0,42014.0,0.005]
[1641891276036,0.58925844,42015.0,42011.0,0.00043274]
[1641891276235,0.059505,42014.0,42011.0,0.00043274]
[1641891276510,0.05788529,42014.0,42011.0,0.00043274]
[1641891276719,0.05788529,42014.0,41997.0,0.49550811]
[1641891276916,0.0012836,42002.0,41988.0,0.14680841]
[1641891277110,0.059549,41996.0,41986.0,0.00035086]
[1641891277309,0.00121543,41987.0,41986.0,0.00035086]
[1641891277514,0.42180843,41987.0,41986.0,0.00035086]
[1641891277709,1.43806032,41987.0,41981.0,0.008]
[1641891277911,1.43806032,41987.0,41984.0,0.00035102]
[1641891278109,0.50339868,41986.0,41984.0,0.00035102]
[1641891278311,0.420593,41985.0,41984.0,0.00035102]
[1641891278610,0.570593,41985.0,41984.0,0.00035102]
[1641891278813,0.570593,41985.0,41981.0,0.008]
[1641891279011,0.059552,41984.0,41982.0,0.00035105]
[1641891279214,0.420593,41983.0,41982.0,0.00035105]
[1641891279411,0.87225782,41983.0,41982.0,0.00035105]
[1641891279611,0.97225782,41983.0,41982.0,0.00035105]
[1641891280012,0.04880006,41983.0,41982.0,0.00035105]
[1641891280238,0.0476,41983.0,41981.0,0.008]
[1641891280837,0.0476,41983.0,41981.0,0.025]
[1641891281038,0.0476,41983.0,41981.0,0.084542]
[1641891281240,0.31919317,41982.0,41981.0,0.025]
[1641891281438,0.31919317,41982.0,41981.0,0.075]